[Event "HUN-chT Youth-Children 2018"]
[Site "Zalakaros"]
[Date "2018.07.27"]
[Round "3"]
[White "Bohus, Adam"]
[Black "Kokeny, Norbert Adrian"]
[Result "1/2-1/2"]
[ECO "E16"]
[WhiteElo "2231"]
[BlackElo "2249"]
[Annotator "NA"]
[PlyCount "154"]
[EventDate "2018.07.26"]
[EventType "team-tourn"]
[EventCountry "HUN"]
[SourceTitle "playchess.com"]
[Source "ChessBase"]
[SourceQuality "1"]
[TimeControl "5400+30"]

1. d4 {[%emt 0:00:00]} Nf6 {[%emt 0:00:05]} 2. c4 {[%emt 0:00:00]} e6 {[%emt 0:00:05]} 3. Nf3 {[%emt 0:00:12]} b6 {[%emt 0:00:05]} 4. g3 {[%emt 0:00:17]} Bb7 {[%emt 0:01:08]} 5. Bg2 {[%emt 0:00:16]} Bb4+ {[%emt 0:02:46]} 6. Bd2 {[%emt 0:00:19]} Qe7 {[%emt 0:00:45]} 7. O-O {[%emt 0:01:23]} O-O {[%emt 0:03:09]} 8. Nc3 {[%emt 0:00:42]} Bxc3 {[%emt 0:00:37]} 9. Bxc3 {[%emt 0:03:47]} Ne4 {[%emt 0:00:05]} 10. Qc2 {[%emt 0:13:08]} Nxc3 {[%emt 0:00:11]} 11. Qxc3 {[%emt 0:02:06]} d6 {[%emt 0:00:11]} 12. Qd3 {[%emt 0:12:56] E16: Queen's Indian: 4 g3 Bb7 5 Bg2 Bb4+} (12. Rfe1 Nd7 13. e4 e5 14. d5 a5 15. b3 Nc5 16. Nd2 Bc8 17. f4 Bd7 18. a3 Rfe8 19. b4 axb4 20. axb4 Na4 {1-0 (45) Hamitevici,V (2443)-Donchenko,A (2588) Vandoeuvre 2015}) 12... f5 {[%emt 0:07:08]} 13. Ne1 {[%emt 0:01:25]} Bxg2 {[%emt 0:03:09]} 14. Nxg2 {[%emt 0:00:23]} Nd7 {[%emt 0:00:51]} 15. e4 {[%emt 0:19:48]} Qf7 $146 {[%emt 0:23:44]} ({Predecessor:} 15... e5 16. exf5 exd4 17. Qxd4 Rxf5 18. Ne3 Rf7 19. Rae1 Qe5 {1-0 (46) Djukic,Z (2397)-Majstorovic,D (2041) Nis 2013}) 16. exf5 {[%emt 0:06:13]} Qxf5 {[%emt 0:01:41]} 17. Qxf5 {[%emt 0:03:04]} Rxf5 {[%emt 0:05:09]} 18. Nf4 {[%emt 0:03:13]} Kf7 {[%emt 0:04:14]} 19. Rfe1 {[%emt 0:07:01]} Re8 {[%emt 0:02:41]} 20. Re2 {[%emt 0:01:05]} g5 {[%emt 0:06:08]} 21. Ng2 {[%emt 0:02:37]} Kg6 {[%emt 0:10:12]} 22. Rae1 {[%emt 0:02:09]} Rf6 {[%emt 0:00:47]} 23. h4 {[%emt 0:10:06]} h6 {[%emt 0:00:37]} 24. hxg5 {[%emt 0:01:19]} hxg5 {[%emt 0:00:10]} 25. f4 {[%emt 0:04:37]} ({White should try} 25. Ne3 $14) 25... c6 {[%emt 0:03:35]} 26. fxg5 {[%emt 0:02:01]} Kxg5 {[%emt 0:00:21]} 27. Nf4 {[%emt 0:00:09]} e5 {[%emt 0:00:47]} 28. Kg2 {[%emt 0:01:54]} Rh8 {[%emt 0:02:43]} 29. dxe5 {[%emt 0:00:55]} Nxe5 {[%emt 0:00:31]} 30. Nh3+ {[%emt 0:01:06]} Kg6 {[%emt 0:01:00]} 31. b3 {[%emt 0:00:17]} Kg7 {[%emt 0:02:15]} 32. Rh1 {[%emt 0:00:43]} Rfh6 {[%emt 0:02:42]} 33. Nf2 {[%emt 0:00:20]} Rxh1 {[%emt 0:00:45]} 34. Nxh1 {[%emt 0:00:01]} Kf6 {[%emt 0:00:13]} 35. Nf2 {[%emt 0:00:23]} Kf5 {[%emt 0:01:26]} 36. Ne4 {[%emt 0:00:39]} Rh6 {[%emt 0:01:33]} 37. Nd2 {[%emt 0:01:10]} Ng4 {[%emt 0:01:22]} 38. Nf3 {[%emt 0:00:29]} Ne5 {[%emt 0:01:01]} 39. Nxe5 {[%emt 0:00:43]} dxe5 {[%emt 0:00:20]} 40. Kf3 {[%emt 0:00:28]} Rg6 {[%emt 0:00:30]} 41. Rh2 {[%emt 0:00:31]} e4+ {[%emt 0:00:21]} 42. Kf2 {[%emt 0:00:01]} Ke5 {[%emt 0:00:25]} 43. Rh7 {[%emt 0:00:16]} a5 {[%emt 0:00:36]} 44. Rb7 {[%emt 0:00:40]} Kd4 {[%emt 0:00:24]} 45. Rd7+ {[%emt 0:00:57]} Kc3 {[%emt 0:00:39]} 46. Re7 {[%emt 0:00:01]} Kd4 {[%emt 0:03:10]} (46... Kb2 $17 47. c5 b5) 47. Rd7+ {[%emt 0:00:25]} Kc5 {[%emt 0:01:02]} 48. Re7 {[%emt 0:01:10]} Rg4 {[%emt 0:00:56]} 49. Rf7 {[%emt 0:00:20]} Kb4 {[%emt 0:00:59]} 50. Rf4 {[%emt 0:00:23]} e3+ {[%emt 0:00:07]} 51. Kf3 {[%emt 0:00:43]} e2 {[%emt 0:00:16]} 52. Kxe2 {[%emt 0:00:19]} Rxg3 {[%emt 0:00:10]} 53. Rf6 {[%emt 0:00:34]} Kc5 {[%emt 0:01:12]} 54. Rf5+ {[%emt 0:00:35]} Kd4 {[%emt 0:00:16]} 55. Rf6 {[%emt 0:00:26]} c5 {[%emt 0:04:42]} 56. Rxb6 {[%emt 0:00:16]} Rg2+ {[%emt 0:00:05]} 57. Kd1 {[%emt 0:00:45]} Rxa2 {[%emt 0:00:07]} 58. Rb5 {[%emt 0:00:28]} a4 {[%emt 0:01:22]} 59. bxa4 $11 {[%emt 0:00:25]} Rxa4 {[%emt 0:00:13]} 60. Rb3 {[%emt 0:00:45]} Kxc4 {[%emt 0:00:18]} 61. Rh3 {[%emt 0:00:21]} Ra2 {[%emt 0:00:20]} 62. Kc1 {[%emt 0:00:14]} Kb4 {[%emt 0:00:15]} 63. Rg3 {[%emt 0:00:34]} Rh2 {[%emt 0:00:26]} 64. Rf3 {[%emt 0:00:17]} c4 {[%emt 0:01:03]} 65. Rg3 {[%emt 0:00:15]} Rh1+ {[%emt 0:00:12]} 66. Kc2 {[%emt 0:00:14]} Rh2+ {[%emt 0:01:21]} 67. Kc1 {[%emt 0:00:05]} Ra2 {[%emt 0:00:17]} 68. Rh3 {[%emt 0:00:25]} Ra5 {[%emt 0:00:33]} 69. Kc2 {[%emt 0:00:35]} Rc5 {[%emt 0:01:01]} 70. Rg3 {[%emt 0:00:33]} Rh5 {[%emt 0:00:06]} 71. Rf3 {[%emt 0:00:30]} Rh4 {[%emt 0:00:19]} 72. Rg3 {[%emt 0:00:09]} c3 {[%emt 0:00:11]} 73. Rg8 {[%emt 0:00:33]} Rh2+ {[%emt 0:00:34]} 74. Kc1 {[%emt 0:00:15]} Rb2 {[%emt 0:00:45]} 75. Rb8+ {[%emt 0:00:13]} Ka3 {[%emt 0:00:03]} 76. Rxb2 {[%emt 0:00:12]} cxb2+ {[%emt 0:00:02]} 77. Kb1 {[%emt 0:00:08]} Kb3 1/2-1/2

[Event "HUN-chT Youth-Children 2018"]
[Site "Zalakaros"]
[Date "2018.07.27"]
[Round "3"]
[White "Acs, Marton"]
[Black "Ugroczky, Peter"]
[Result "0-1"]
[ECO "A07"]
[WhiteElo "2204"]
[BlackElo "2247"]
[Annotator "NA"]
[PlyCount "68"]
[EventDate "2018.07.26"]
[EventType "team-tourn"]
[EventCountry "HUN"]
[SourceTitle "playchess.com"]
[Source "ChessBase"]
[SourceQuality "1"]
[TimeControl "5400+30"]

1. Nf3 {[%emt 0:00:00]} Nf6 {[%emt 0:00:08]} 2. g3 {[%emt 0:00:00]} d5 {[%emt 0:00:38]} 3. Bg2 {[%emt 0:00:00]} c6 {[%emt 0:00:00]} 4. O-O {[%emt 0:00:13]} Bg4 {[%emt 0:00:30]} 5. d4 {[%emt 0:01:36]} e6 {[%emt 0:00:23]} 6. Nbd2 {[%emt 0:01:02]} Be7 {[%emt 0:00:47]} 7. Re1 {[%emt 0:00:08]} O-O {[%emt 0:00:57]} 8. e4 {[%emt 0:00:12]} Nbd7 {[%emt 0:01:33]} 9. c3 {[%emt 0:01:52]} Bh5 {[%emt 0:01:04]} 10. Qb3 {[%emt 0:04:59] D02: 1 d4 d5 2 Nf3 sidelines, including 2...Nf6 3 g3 and 2...Nf6 3 Bf4} Qc7 {[%emt 0:03:10]} 11. exd5 {[%emt 0:20:47]} cxd5 {[%emt 0:00:43]} 12. Nh4 $146 {[%emt 0:05:42]} ({Predecessor:} 12. Nf1 Rfc8 13. Bf4 Qb6 14. Ne5 Nxe5 15. Bxe5 Bg6 16. Nd2 Nd7 17. Bf4 Bf6 {½-½ (17) Mirzoev,A (2543)-Krivoshey,S (2488) Salou 2008}) 12... Nb6 {[%emt 0:04:42]} 13. f4 {[%emt 0:01:48]} Bg6 {[%emt 0:05:48]} 14. Bh3 {[%emt 0:19:06]} Bd6 {[%emt 0:04:51]} 15. Ndf3 {[%emt 0:06:03]} Be4 {[%emt 0:02:49]} 16. Ne5 {[%emt 0:03:27]} Nfd7 {[%emt 0:02:04]} 17. Bg2 {[%emt 0:07:44]} f5 {[%emt 0:02:33]} ({Viel schlechter ist} 17... Nxe5 $6 18. fxe5 Be7 19. Bxe4 $14) 18. Nhf3 {[%emt 0:04:06]} Nxe5 {[%emt 0:01:59]} 19. Nxe5 {[%emt 0:06:31]} Bxe5 {[%emt 0:01:19]} 20. dxe5 {[%emt 0:00:16]} Nc4 {[%emt 0:01:08]} 21. Be3 {[%emt 0:02:36]} b5 {[%emt 0:03:27]} 22. Bd4 {[%emt 0:01:26]} ({Reject} 22. Qxb5 Bxg2 23. Kxg2 Rfb8 $17) 22... Rab8 {[%emt 0:01:48]} 23. Re2 {[%emt 0:03:26]} a5 {[%emt 0:04:37]} 24. Qd1 {[%emt 0:01:01]} b4 {[%emt 0:02:13]} 25. b3 {[%emt 0:03:33]} Na3 {[%emt 0:01:47]} 26. cxb4 {[%emt 0:00:29]} axb4 {[%emt 0:00:18]} 27. Rc1 {[%emt 0:00:10]} Qb7 {[%emt 0:01:03]} 28. Qd2 {[%emt 0:04:26]} Rfc8 {[%emt 0:03:10]} 29. Bxe4 {[%emt 0:00:30]} Rxc1+ {[%emt 0:01:49]} 30. Qxc1 {[%emt 0:00:06]} fxe4 {[%emt 0:00:05]} 31. Qe3 {[%emt 0:01:14]} Rc8 {[%emt 0:01:03]} 32. Bc5 {[%emt 0:00:21]} Qb5 {[%emt 0:01:56]} 33. Bd6 {[%emt 0:00:02]} Nc2 {[%emt 0:07:48]} 34. Qd2 $19 {[%emt 0:00:20]} Nd4 {[%emt 0:02:40]} 0-1

[Event "HUN-chT Youth-Children 2018"]
[Site "Zalakaros"]
[Date "2018.07.27"]
[Round "3"]
[White "Kovacs, Judit"]
[Black "Horvath, Balazs"]
[Result "1-0"]
[ECO "E90"]
[WhiteElo "2143"]
[BlackElo "2039"]
[Annotator "NA"]
[PlyCount "65"]
[EventDate "2018.07.26"]
[EventType "team-tourn"]
[EventCountry "HUN"]
[SourceTitle "playchess.com"]
[Source "ChessBase"]
[SourceQuality "1"]
[TimeControl "5400+30"]

1. d4 {[%emt 0:00:00]} Nf6 {[%emt 0:00:28]} 2. c4 {[%emt 0:00:00]} g6 {[%emt 0:00:05]} 3. Nc3 {[%emt 0:00:00]} Bg7 {[%emt 0:00:04]} 4. e4 {[%emt 0:00:00]} d6 {[%emt 0:00:04]} 5. Nf3 {[%emt 0:00:02]} O-O {[%emt 0:00:09]} 6. h3 {[%emt 0:00:06]} e5 {[%emt 0:02:07]} 7. d5 {[%emt 0:00:13]} Ne8 {[%emt 0:02:01]} 8. g4 {[%emt 0:06:18] E90: King's Indian: Classical: Early deviations and 6 h3} a5 {[%emt 0:04:08]} (8... f5 9. gxf5 gxf5 10. Bg5 Bf6 {½-½ (10) Jovanovic,D (2407)-Zlatanovic,B (2398) Kragujevac 2014}) 9. Be2 {[%emt 0:05:31]} Na6 {[%emt 0:01:33]} 10. Bg5 $146 {[%emt 0:04:33]} ({Predecessor:} 10. Be3 Bd7 11. Qd2 a4 12. Bh6 Nc5 13. h4 Bxg4 14. h5 Bxf3 15. Bxf3 Qf6 {½-½ (57) Quinn,J (2150)-Wibe,P (1809) Gausdal 2006}) 10... f6 {[%emt 0:01:15]} 11. Be3 {[%emt 0:00:08]} Nc5 {[%emt 0:01:56]} 12. Nd2 {[%emt 0:03:52]} f5 {[%emt 0:13:23]} 13. gxf5 {[%emt 0:06:48]} gxf5 {[%emt 0:01:03]} 14. h4 {[%emt 0:08:48]} f4 {[%emt 0:03:52]} 15. Bxc5 {[%emt 0:00:27]} dxc5 {[%emt 0:00:06]} 16. Qc2 {[%emt 0:01:23]} Nd6 {[%emt 0:06:32]} 17. O-O-O {[%emt 0:02:13]} Bd7 {[%emt 0:02:14]} 18. Rdg1 {[%emt 0:02:39]} Kh8 {[%emt 0:02:27]} 19. Nf3 {[%emt 0:03:43]} h6 {[%emt 0:04:06] [#]} 20. Ne1 $2 {[%emt 0:06:48]} (20. Rxg7 $1 $18 {[%mdl 512]} Kxg7 21. Nxe5) 20... Rg8 {[%emt 0:08:59]} 21. Nf3 {[%emt 0:05:23]} (21. h5 $14) 21... Bf6 {[%emt 0:11:38]} 22. Nb5 {[%emt 0:08:07]} Bxb5 {[%emt 0:02:50]} 23. cxb5 {[%emt 0:00:08]} b6 {[%emt 0:00:25]} 24. Ng5 {[%emt 0:01:41]} Qe7 {[%emt 0:02:46]} 25. Bd3 {[%emt 0:02:39]} Nf7 {[%emt 0:06:31]} ({Black should try} 25... Bxg5 $11 26. hxg5 Rg6) 26. d6 {[%emt 0:12:19]} Nxd6 {[%emt 0:03:25]} 27. Bc4 {[%emt 0:00:13]} Rg7 $16 {[%emt 0:09:47] [#]} (27... Nxc4 $15 28. Qxc4 Rg6) 28. Bd5 $1 {[%emt 0:00:55]} Re8 {[%emt 0:02:11]} 29. Qe2 {[%emt 0:01:13]} Qf8 {[%emt 0:04:24]} 30. Ne6 {[%emt 0:06:22]} Rxg1+ {[%emt 0:02:00]} 31. Rxg1 {[%emt 0:00:01]} Qe7 {[%emt 0:01:56]} 32. Qh5 {[%emt 0:00:08]} Kh7 {[%emt 0:01:09]} 33. Qg6+ {[%emt 0:00:16]} 1-0

[Event "HUN-chT Youth-Children 2018"]
[Site "Zalakaros"]
[Date "2018.07.27"]
[Round "3"]
[White "Dibusz, Domonkos"]
[Black "Baski, Barnabas"]
[Result "1-0"]
[ECO "C07"]
[WhiteElo "2076"]
[BlackElo "1740"]
[Annotator "NA"]
[PlyCount "119"]
[EventDate "2018.07.26"]
[EventType "team-tourn"]
[EventCountry "HUN"]
[SourceTitle "playchess.com"]
[Source "ChessBase"]
[SourceQuality "1"]
[TimeControl "5400+30"]

1. e4 {[%emt 0:00:00]} e6 {[%emt 0:00:13]} 2. d4 {[%emt 0:00:00]} d5 {[%emt 0:00:07]} 3. Nd2 {[%emt 0:00:07]} c5 {[%emt 0:00:08]} 4. exd5 {[%emt 0:00:16]} Qxd5 {[%emt 0:00:24]} 5. Ngf3 {[%emt 0:00:09]} cxd4 {[%emt 0:00:40]} 6. Bc4 {[%emt 0:00:06]} Qd7 {[%emt 0:00:23] C07: French Tarrasch: 3...c5, 4 Ngf3 and 4 exd5 Qxd5} 7. Qe2 {[%emt 0:00:05]} Nc6 {[%emt 0:01:25]} 8. Nb3 {[%emt 0:00:21]} Bd6 $146 {[%emt 0:03:43]} ({Predecessor:} 8... a6 9. Bf4 Bb4+ 10. Nbd2 Nf6 11. O-O-O b5 12. Bd3 Nd5 13. Bg3 Bd6 14. Nb3 {1-0 (63) Jaracz,P (2496)-Fridman,D (2616) Trzcianka 2014}) 9. O-O {[%emt 0:02:18]} a6 {[%emt 0:03:31]} 10. a4 {[%emt 0:00:21]} Nge7 {[%emt 0:02:07]} 11. Rd1 {[%emt 0:00:54]} Qc7 {[%emt 0:03:36]} 12. h3 {[%emt 0:06:03]} O-O {[%emt 0:04:15]} 13. Nbxd4 {[%emt 0:01:53]} Nxd4 {[%emt 0:06:33]} 14. Nxd4 {[%emt 0:00:15]} e5 {[%emt 0:04:38]} 15. Nf3 {[%emt 0:00:09]} Bf5 {[%emt 0:02:16]} 16. Be3 {[%emt 0:01:30]} Ng6 {[%emt 0:04:25]} 17. Bd5 {[%emt 0:07:46]} Rae8 {[%emt 0:12:01]} 18. c4 {[%emt 0:02:44]} Bc5 {[%emt 0:12:04]} 19. Rac1 {[%emt 0:03:13]} Bxe3 {[%emt 0:07:30]} 20. fxe3 {[%emt 0:01:32]} Be6 {[%emt 0:06:19] [#]} (20... Ne7 $11 {keeps the balance.}) 21. b4 {[%emt 0:01:55]} (21. Ng5 $1 $16) 21... Bxd5 {[%emt 0:01:40]} 22. cxd5 {[%emt 0:00:58]} Qb6 {[%emt 0:01:58]} 23. Qd2 {[%emt 0:00:14]} Rd8 {[%emt 0:04:50]} (23... e4 $11 {keeps the balance.} 24. Ne1 Qd6) 24. Rc5 {[%emt 0:02:27]} (24. d6 $16) 24... Qd6 {[%emt 0:03:43]} 25. Ng5 {[%emt 0:01:38]} h6 {[%emt 0:01:49]} 26. Ne4 {[%emt 0:00:10]} Qd7 {[%emt 0:00:28]} 27. Qc2 {[%emt 0:01:25]} Rc8 {[%emt 0:01:39]} 28. d6 {[%emt 0:06:56]} Rfd8 {[%emt 0:02:37]} 29. Kh2 {[%emt 0:02:49]} Rxc5 {[%emt 0:03:22]} 30. bxc5 {[%emt 0:03:40]} Qc6 {[%emt 0:02:11]} 31. Qc4 {[%emt 0:02:20]} Rd7 {[%emt 0:01:17]} 32. a5 {[%emt 0:01:47]} Kh8 {[%emt 0:01:49]} 33. Rf1 {[%emt 0:09:08]} f6 {[%emt 0:01:55]} 34. Qe6 Nf8 {[%emt 0:00:34] [#]} 35. Qe8 $1 {[%emt 0:06:45]} Qxe4 {[%emt 0:00:50]} 36. Qxf8+ {[%emt 0:00:04]} Kh7 {[%emt 0:00:06]} 37. Qc8 {[%emt 0:01:12]} Qa4 {[%emt 0:00:50]} 38. Rb1 {[%emt 0:00:41]} Qe4 {[%emt 0:00:52]} 39. Rb3 {[%emt 0:01:02]} Qd5 {[%emt 0:00:32]} 40. Qxd7 {[%emt 0:00:33]} Qxb3 {[%emt 0:00:01]} 41. Qf5+ {[%emt 0:00:27]} Kg8 $18 {[%emt 0:00:56]} 42. Qc8+ {[%emt 0:07:37]} Kh7 {[%emt 0:00:31]} 43. d7 {[%emt 0:00:34]} Qxe3 {[%emt 0:00:22]} 44. d8=Q {[%emt 0:00:21]} Qf4+ {[%emt 0:00:15]} 45. Kg1 {[%emt 0:00:08]} Qc1+ {[%emt 0:00:58]} 46. Kf2 {[%emt 0:00:08]} Qf4+ {[%emt 0:00:26]} 47. Ke2 {[%emt 0:00:12]} Qe4+ {[%emt 0:00:12]} 48. Kd2 {[%emt 0:00:16]} Qb4+ {[%emt 0:00:34]} 49. Kd3 {[%emt 0:00:27]} e4+ {[%emt 0:00:50]} 50. Ke3 {[%emt 0:00:10]} Qc3+ {[%emt 0:00:26]} 51. Kxe4 {[%emt 0:00:19]} Qe5+ {[%emt 0:00:09]} 52. Kd3 {[%emt 0:00:11]} Qg3+ {[%emt 0:00:42]} 53. Kc4 {[%emt 0:00:12]} Qf4+ {[%emt 0:00:38]} 54. Qd4 {[%emt 0:00:14]} Qc1+ {[%emt 0:00:11]} 55. Kd5 {[%emt 0:00:20]} Qg5+ {[%emt 0:00:17]} 56. Ke6 {[%emt 0:00:59]} f5 {[%emt 0:00:54]} 57. Kd6 {[%emt 0:00:28]} Qg3+ {[%emt 0:00:19]} 58. Kd7 {[%emt 0:00:33]} Qxg2 {[%emt 0:00:51]} 59. Kc7 {[%emt 0:00:49]} Qc6+ {[%emt 0:00:33]} 60. Kb8 {[%emt 0:00:07]} 1-0

[Event "HUN-chT Youth-Children 2018"]
[Site "Zalakaros"]
[Date "2018.07.27"]
[Round "3"]
[White "Diller, Denis"]
[Black "Szabo, Andrea Erzsebet"]
[Result "1-0"]
[ECO "D43"]
[WhiteElo "2057"]
[BlackElo "1588"]
[Annotator "NA"]
[PlyCount "53"]
[EventDate "2018.07.26"]
[EventType "team-tourn"]
[EventCountry "HUN"]
[SourceTitle "playchess.com"]
[Source "ChessBase"]
[SourceQuality "1"]
[TimeControl "5400+30"]

1. d4 {[%emt 0:00:00]} d5 {[%emt 0:00:19]} 2. c4 {[%emt 0:00:00]} c6 {[%emt 0:00:36]} 3. Nc3 {[%emt 0:00:16]} Nf6 {[%emt 0:00:53]} 4. Nf3 {[%emt 0:01:19]} e6 {[%emt 0:01:11]} 5. Bg5 {[%emt 0:00:56]} Be7 {[%emt 0:00:22]} 6. e3 {[%emt 0:00:59]} Nbd7 {[%emt 0:01:23]} 7. Bd3 {[%emt 0:00:30]} dxc4 {[%emt 0:09:20]} 8. Bxc4 {[%emt 0:00:09]} Nb6 {[%emt 0:00:10]} 9. Bd3 {[%emt 0:01:37]} Nfd5 {[%emt 0:01:26]} 10. Bxe7 {[%emt 0:01:28]} Qxe7 {[%emt 0:00:49]} 11. O-O {[%emt 0:00:51]} O-O {[%emt 0:04:44]} 12. e4 {[%emt 0:03:37] D60: Damengambit (Hauptvariante)} (12. Rc1 Nd7 13. e4 Nf4 14. e5 f5 15. exf6 gxf6 16. Be4 f5 17. Bc2 Qg7 18. g3 b6 19. Qd2 Nh5 20. Qg5 Qxg5 21. Nxg5 {1-0 (41) Aghasaryan,R (2503)-Porfireanu,S (1903) Yerevan 2014}) 12... Nf4 {[%emt 0:06:35]} 13. Bc2 {[%emt 0:00:07]} Nc4 $146 {[%emt 0:02:50]} ({Vorgänger:} 13... Rd8 14. Qc1 Ng6 15. Rd1 Qf6 16. Bb3 a5 17. a3 a4 18. Ba2 Ra5 19. Qe3 Qf4 {1-0 (55) Voss,C (1933)-Thiery,J (1799) Germany 2017}) 14. Qc1 {[%emt 0:05:07]} Ng6 {[%emt 0:07:20]} 15. Bd3 {[%emt 0:03:26]} Nb6 {[%emt 0:04:18]} 16. Qe3 {[%emt 0:02:55]} e5 {[%emt 0:10:02]} 17. Nxe5 {[%emt 0:00:43]} Nxe5 {[%emt 0:00:43]} 18. dxe5 {[%emt 0:00:09]} Qxe5 {[%emt 0:01:30]} 19. f4 {[%emt 0:00:06]} Qe7 {[%emt 0:01:09]} 20. Rae1 {[%emt 0:01:13]} Re8 {[%emt 0:02:36]} 21. e5 {[%emt 0:04:59]} f6 {[%emt 0:07:05] [#]} (21... f5 $1 $14) 22. Qg3 {[%emt 0:15:25]} (22. Ne4 $1 $16) 22... Qc5+ {[%emt 0:02:52]} 23. Kh1 {[%emt 0:00:25]} fxe5 $2 {[%emt 0:03:15]} (23... f5 $16) 24. Ne4 {[%emt 0:03:15]} Qe7 {[%emt 0:01:58]} 25. fxe5 $18 {[%emt 0:00:12]} Kh8 {[%emt 0:03:43]} 26. Ng5 {[%emt 0:03:36]} h6 {[%emt 0:04:13]} 27. Nf7+ {[%emt 0:00:36]} 1-0

[Event "HUN-chT Youth-Children 2018"]
[Site "Zalakaros"]
[Date "2018.07.27"]
[Round "3"]
[White "Tancsa, Tamas"]
[Black "Fodor, Kornel"]
[Result "1-0"]
[ECO "B44"]
[WhiteElo "2023"]
[BlackElo "1794"]
[Annotator "NA"]
[PlyCount "65"]
[EventDate "2018.07.26"]
[EventType "team-tourn"]
[EventCountry "HUN"]
[SourceTitle "playchess.com"]
[Source "ChessBase"]
[SourceQuality "1"]
[TimeControl "5400+30"]

1. e4 {[%emt 0:00:00]} c5 {[%emt 0:00:04]} 2. Nf3 {[%emt 0:00:00]} e6 {[%emt 0:00:10]} 3. d4 {[%emt 0:00:10]} cxd4 {[%emt 0:00:05]} 4. Nxd4 {[%emt 0:00:14]} Nc6 {[%emt 0:00:12]} 5. Nb5 {[%emt 0:00:14]} d6 {[%emt 0:00:49]} 6. c4 {[%emt 0:00:28]} Nf6 {[%emt 0:00:41]} 7. N1c3 {[%emt 0:00:06]} a6 {[%emt 0:01:03]} 8. Na3 {[%emt 0:00:06]} d5 {[%emt 0:06:53]} 9. cxd5 {[%emt 0:02:05]} exd5 {[%emt 0:00:08]} 10. exd5 {[%emt 0:00:49]} Nb4 {[%emt 0:00:12]} 11. Bc4 {[%emt 0:00:44] B44: Sicilian: Taimanov: 5 Nb5} Bd6 $146 {[%emt 0:13:44]} ({Predecessor:} 11... Bg4 12. Qd4 b5 13. Bb3 Bc5 14. Qe5+ Kf8 15. O-O Nd3 16. Qg3 Nxc1 17. Raxc1 Bd6 18. Qh4 b4 {0-1 (37) Konnyu,J (2370)-Szabolcsi,J (2357) Budapest 2011}) 12. O-O {[%emt 0:01:21]} O-O {[%emt 0:00:14]} 13. Bg5 {[%emt 0:01:10]} Qc7 {[%emt 0:08:53]} 14. Bxf6 {[%emt 0:03:16]} Bxh2+ {[%emt 0:09:43]} 15. Kh1 {[%emt 0:00:07]} gxf6 {[%emt 0:00:05]} 16. g3 {[%emt 0:00:06]} Bxg3 {[%emt 0:01:22]} 17. fxg3 {[%emt 0:00:27]} Kh8 {[%emt 0:00:34]} 18. Rf4 {[%emt 0:01:46]} Rg8 {[%emt 0:04:41]} 19. Qh5 {[%emt 0:02:57]} Rg5 {[%emt 0:04:15]} 20. Qh6 {[%emt 0:01:01]} Rg6 {[%emt 0:02:55]} 21. Qf8+ {[%emt 0:01:13]} Rg8 {[%emt 0:00:06]} 22. Qxb4 {[%emt 0:00:20]} Rxg3 {[%emt 0:00:48]} 23. Qf8+ {[%emt 0:00:07]} Rg8 {[%emt 0:00:05]} 24. Qh6 {[%emt 0:00:07]} Rg6 {[%emt 0:02:15]} 25. Qh2 {[%emt 0:00:33]} Bh3 {[%emt 0:05:26]} 26. Bf1 {[%emt 0:02:16]} Bg4 {[%emt 0:02:55]} 27. Bd3 {[%emt 0:00:35]} f5 {[%emt 0:03:48]} 28. Bxf5 {[%emt 0:00:39]} Bxf5 {[%emt 0:00:11]} 29. Rxf5 {[%emt 0:00:06]} Qxh2+ {[%emt 0:03:47]} 30. Kxh2 {[%emt 0:00:25]} Rag8 {[%emt 0:00:07]} 31. Rf3 {[%emt 0:01:26]} Rg2+ {[%emt 0:00:17]} 32. Kh1 $18 {[%emt 0:00:10]} Rd2 {[%emt 0:06:15]} 33. Rg1 {[%emt 0:00:19]} 1-0

[Event "HUN-chT Youth-Children 2018"]
[Site "Zalakaros"]
[Date "2018.07.27"]
[Round "3"]
[White "Hegedus, Dominik"]
[Black "Reviczki, Roland"]
[Result "1/2-1/2"]
[ECO "B20"]
[WhiteElo "2005"]
[BlackElo "1931"]
[Annotator "NA"]
[PlyCount "59"]
[EventDate "2018.07.26"]
[EventType "team-tourn"]
[EventCountry "HUN"]
[SourceTitle "playchess.com"]
[Source "ChessBase"]
[SourceQuality "1"]
[TimeControl "5400+30"]

1. e4 {[%emt 0:00:00]} c5 {[%emt 0:00:26]} 2. c4 {[%emt 0:00:00]} Nc6 {[%emt 0:00:06]} 3. Ne2 {[%emt 0:00:00]} e5 {[%emt 0:23:43]} 4. Nbc3 {[%emt 0:00:47]} g6 {[%emt 0:00:22]} 5. d3 {[%emt 0:00:13]} Bg7 {[%emt 0:00:29]} 6. g3 {[%emt 0:00:07]} Nge7 {[%emt 0:02:48]} 7. Bg2 {[%emt 0:00:08]} O-O {[%emt 0:00:07]} 8. O-O {[%emt 0:00:04]} f5 {[%emt 0:02:28] A36: Englische Eröffnung (Botwinnik-Variante)} (8... d6 9. f4 {Vorgänger:} f5 10. Be3 Nd4 11. Qd2 (11. Rb1 Nec6 12. Qd2 fxe4 13. Nxe4 Nf5 14. Bf2 Ncd4 15. fxe5 Bxe5 16. Nxd4 cxd4 17. Ng5 Qb6 {1-0 (40) Valdes Escobar,A (2302)-Guerrero,A (2154) Villa Martelli 2008}) 11... Rb8 12. Nd5 Nxd5 13. cxd5 b6 14. Kh1 fxe4 15. dxe4 Ba6 16. Bxd4 cxd4 17. Rf2 Rc8 18. Nc1 Rc7 19. Nd3 Bxd3 20. Qxd3 Qc8 21. Raf1 Rc1 22. Qd2 Rxf1+ 23. Bxf1 exf4 24. Rxf4 Bh6 {½-½ (24) Maltsevskaya,A (2276)-Kovalevskaya,E (2405) Moscow 2017}) 9. f4 {[%emt 0:00:20]} fxe4 $146 {[%emt 0:17:19]} 10. Nxe4 {[%emt 0:01:26]} d6 {[%emt 0:01:48]} 11. fxe5 {[%emt 0:01:25]} Bxe5 {[%emt 0:02:33]} 12. Bh6 {[%emt 0:02:22]} Rxf1+ {[%emt 0:01:18]} 13. Qxf1 {[%emt 0:00:16]} Nf5 {[%emt 0:00:55]} 14. Bg5 {[%emt 0:00:35]} Qf8 {[%emt 0:05:07]} 15. g4 {[%emt 0:01:28]} Nfd4 {[%emt 0:13:56]} 16. Qxf8+ {[%emt 0:00:31]} Kxf8 {[%emt 0:00:12]} 17. Rf1+ {[%emt 0:00:05]} Kg7 {[%emt 0:00:22]} 18. Nxd4 {[%emt 0:02:58]} Nxd4 {[%emt 0:03:42]} 19. h3 {[%emt 0:20:48]} Be6 {[%emt 0:05:53]} 20. Be7 $1 {[%emt 0:01:12]} Ne2+ {[%emt 0:03:50]} 21. Kf2 {[%emt 0:03:52]} Nf4 {[%emt 0:00:40]} 22. Bxd6 {[%emt 0:08:15]} Bd4+ {[%emt 0:06:01]} 23. Kg3 $16 {[%emt 0:02:45]} Nxd3 {[%emt 0:00:29]} 24. b3 {[%emt 0:00:52]} Rd8 {[%emt 0:03:46]} 25. Bc7 {[%emt 0:00:48]} Rd7 {[%emt 0:01:52]} 26. Ng5 {[%emt 0:06:17]} Bg8 {[%emt 0:00:09]} 27. Bf4 {[%emt 0:04:38]} Nxf4 {[%emt 0:00:34]} 28. Kxf4 {[%emt 0:00:06]} h6 {[%emt 0:00:11]} 29. Nf3 {[%emt 0:01:02]} b6 {[%emt 0:00:21]} 30. h4 {[%emt 0:02:37]} 1/2-1/2